fUST/lending_fUST_20250101
["ID","MTS","AMOUNT","RATE_DAILY","PERIOD"]
[347301217,1735668642735,-500.0,0.00019178,2]
[347301218,1735668642744,-500.0,0.00019178,2]
[347301219,1735668642754,-500.0,0.00019178,2]
[347301220,1735668642764,-500.0,0.00019178,2]
[347301221,1735668642774,-500.0,0.00019178,2]
[347301222,1735668642784,-500.0,0.00019178,2]
[347301223,1735668642793,-175.85673067,0.00019178,2]
[347301224,1735668642803,-660.05,0.00019178,2]
[347301225,1735668642812,-500.0,0.00019178,2]
[347301226,1735668642915,-389.94802501,0.0001929,2]
[347301227,1735668642939,-1056.27951268,0.00019352,2]
[347301228,1735668642950,-192.0,0.0001936,2]
[347301229,1735668642959,-151.0,0.00019452,2]
[347301230,1735668642969,-328.840594,0.00019452,2]
[347301231,1735668642980,-328.840594,0.00019452,2]
[347301232,1735668642989,-525.49,0.00019452,3]
[347301233,1735668642999,-422.85933435,0.00019452,3]
[347301234,1735668643009,-500.0,0.00019452,3]
[347301235,1735668643018,-500.0,0.00019452,3]
[347301236,1735668643028,-734.17,0.00019452,3]
[347301237,1735668643038,-503.98295423,0.00019452,3]
[347301238,1735668643047,-500.0,0.00019452,3]
[347301239,1735668643057,-500.0,0.00019452,3]
[347301240,1735668643067,-500.0,0.00019452,3]
[347301241,1735668643077,-500.0,0.00019452,3]
[347301242,1735668643087,-500.0,0.00019452,3]
[347301243,1735668643097,-500.0,0.00019452,3]
[347301244,1735668643107,-536.44,0.00019452,3]
[347301246,1735668643117,-500.0,0.00019452,3]
[347301248,1735668643127,-500.0,0.00019452,3]
[347301251,1735668643136,-500.0,0.00019452,3]
[347301253,1735668643146,-505.31059276,0.00019452,3]
[347301254,1735668643155,-500.0,0.00019452,3]
[347301255,1735668643165,-500.0,0.00019452,3]
[347301256,1735668643174,-500.0,0.00019452,3]
[347301257,1735668643184,-502.11,0.00019452,3]
[347301258,1735668643193,-500.0,0.00019452,3]
[347301259,1735668643203,-500.0,0.00019452,3]
[347301260,1735668643213,-500.0,0.00019452,3]
[347301261,1735668643222,-500.0,0.00019452,3]
[347301262,1735668643232,-500.0,0.00019452,3]
[347301263,1735668643242,-500.0,0.00019452,3]
[347301264,1735668643251,-1621.23,0.00019452,3]
[347301267,1735668643260,-521.96,0.00019452,3]
[347301269,1735668643270,-500.0,0.00019452,3]
[347301270,1735668643279,-500.0,0.00019452,3]
[347301271,1735668643288,-500.0,0.00019452,3]
[347301272,1735668643297,-500.0,0.00019452,3]
[347301273,1735668643306,-500.0,0.00019452,3]
[347301274,1735668643316,-516.03,0.00019452,3]
[347301275,1735668643326,-806.41,0.00019452,3]
[347301276,1735668643335,-500.0,0.00019452,3]
[347301277,1735668643344,-902.8,0.00019452,3]
[347301278,1735668643355,-500.0,0.00019452,3]
[347301279,1735668643364,-500.0,0.00019452,3]
[347301280,1735668643374,-500.0,0.00019452,3]
[347301281,1735668643383,-500.0,0.00019452,3]
[347301282,1735668643393,-599.81231256,0.00019452,3]
[347301283,1735668643403,-500.0,0.00019452,3]
[347301284,1735668643413,-500.0,0.00019452,3]
[347301285,1735668643423,-500.0,0.00019452,3]
[347301286,1735668643432,-500.0,0.00019452,2]
[347301287,1735668643442,-500.0,0.00019452,3]
[347301288,1735668643452,-500.0,0.00019452,3]
[347301289,1735668643461,-589.09,0.00019452,3]
[347301290,1735668643471,-500.0,0.00019452,3]
[347301291,1735668643480,-500.0,0.00019452,3]
[347301292,1735668643491,-500.0,0.00019452,3]
[347301293,1735668643500,-500.0,0.00019452,3]
[347301294,1735668643510,-500.0,0.00019452,3]
[347301295,1735668643519,-522.98,0.00019452,3]
[347301296,1735668643529,-545.94,0.00019452,3]
[347301297,1735668643538,-5614.94,0.00019452,3]
[347301298,1735668643548,-759.41,0.00019452,3]
[347301299,1735668643558,-500.0,0.00019452,3]
[347301300,1735668643568,-500.0,0.00019452,3]
[347301301,1735668643577,-500.0,0.00019452,3]
[347301302,1735668643587,-500.0,0.00019452,3]
[347301303,1735668643597,-500.0,0.00019452,3]
[347301304,1735668643609,-503.17145217,0.00019452,3]
[347301305,1735668643619,-517.61,0.00019452,3]
[347301306,1735668643628,-500.0,0.00019452,3]
[347301307,1735668643638,-500.0,0.00019452,3]
[347301308,1735668643647,-500.0,0.00019452,2]
[347301309,1735668643657,-500.0,0.00019452,3]
[347301310,1735668643666,-500.0,0.00019452,3]
[347301311,1735668643676,-500.0,0.00019452,3]
[347301312,1735668643686,-504.84278697,0.00019452,3]
[347301313,1735668643696,-500.0,0.00019452,3]
[347301314,1735668643705,-500.0,0.00019452,3]
[347301315,1735668643715,-568.69899948,0.00019452,3]
[347301316,1735668643724,-500.0,0.00019452,3]
[347301317,1735668643734,-330.7807669,0.00019452,3]
[347301318,1735668643743,-973.69,0.00019452,3]
[347301319,1735668643753,-500.0,0.00019452,3]
[347301320,1735668643763,-500.0,0.00019452,3]
[347301321,1735668643772,-8683.31,0.00019452,3]
[347301322,1735668643782,-500.0,0.00019452,3]
[347301323,1735668643791,-569.88788877,0.00019452,3]
[347301324,1735668643801,-500.0,0.00019452,3]
[347301325,1735668643810,-500.0,0.00019452,3]
[347301326,1735668643819,-500.0,0.00019452,3]
[347301327,1735668643828,-577.61,0.00019452,3]
[347301328,1735668643837,-592.17,0.00019452,3]
[347301329,1735668643847,-500.0,0.00019452,3]
[347301330,1735668643856,-500.0,0.00019452,3]
[347301331,1735668643865,-500.0,0.00019452,3]
[347301332,1735668643875,-500.0,0.00019452,3]
[347301333,1735668643885,-1148.79,0.00019452,3]
[347301334,1735668643895,-240.07717217,0.00019452,3]
[347301335,1735668643907,-500.0,0.00019452,3]
[347301336,1735668643916,-500.0,0.00019452,3]
[347301337,1735668643925,-500.0,0.00019452,3]
[347301338,1735668643935,-500.0,0.00019452,3]
[347301339,1735668643945,-168.0,0.00019452,3]
[347301340,1735668643955,-502.16,0.00019452,3]
[347301341,1735668643964,-500.0,0.00019452,3]
[347301342,1735668643974,-1132.64,0.00019452,3]
[347301343,1735668643984,-5833.04,0.00019452,3]
[347301344,1735668643993,-570.70236481,0.00019452,3]
[347301345,1735668644002,-1512.88,0.00019452,3]
[347301346,1735668644012,-769.3,0.00019452,3]
[347301347,1735668644021,-731.64,0.00019452,3]
[347301348,1735668644030,-500.0,0.00019452,3]
[347301349,1735668644039,-500.0,0.00019452,3]
[347301350,1735668644048,-500.0,0.00019452,3]
[347301351,1735668644058,-644.5,0.00019452,3]
[347301352,1735668644067,-500.0,0.00019452,3]
[347301353,1735668644077,-3050.94,0.00019452,3]
[347301354,1735668644087,-969.77,0.00019452,3]
[347301355,1735668644096,-500.0,0.00019452,3]
[347301356,1735668644107,-500.0,0.00019452,3]
[347301357,1735668644117,-500.0,0.00019452,3]
[347301358,1735668644126,-832.55,0.00019452,3]
[347301359,1735668644136,-770.7,0.00019452,3]
[347301360,1735668644145,-500.0,0.00019452,3]
[347301361,1735668644155,-500.0,0.00019452,3]
[347301362,1735668644164,-1429.98,0.00019452,3]
[347301363,1735668644174,-557.67,0.00019452,3]
[347301364,1735668644183,-500.0,0.00019452,3]
[347301365,1735668644193,-500.0,0.00019452,3]
[347301366,1735668644203,-500.0,0.00019452,3]
[347301367,1735668644212,-500.0,0.00019452,3]
[347301368,1735668644222,-500.0,0.00019452,3]
[347301369,1735668644232,-500.0,0.00019452,3]
[347301370,1735668644242,-500.0,0.00019452,3]
[347301371,1735668644251,-500.0,0.00019452,3]
[347301372,1735668644261,-571.64537705,0.00019452,3]
[347301373,1735668644270,-1584.09,0.00019452,3]
[347301374,1735668644280,-832.15,0.00019452,3]
[347301375,1735668644289,-759.0,0.00019452,3]
[347301376,1735668644298,-500.0,0.00019452,3]
[347301377,1735668644308,-1933.34,0.00019452,3]
[347301378,1735668644317,-3028.4,0.00019452,3]
[347301379,1735668644327,-761.91,0.00019452,3]
[347301380,1735668644335,-500.0,0.00019452,3]
[347301381,1735668644345,-1979.06,0.00019452,3]
[347301382,1735668644355,-500.0,0.00019452,3]
[347301383,1735668644364,-1587.14,0.00019452,3]
[347301384,1735668644374,-500.0,0.00019452,3]
[347301385,1735668644383,-500.0,0.00019452,3]
[347301386,1735668644392,-500.0,0.00019452,3]
[347301387,1735668644402,-330.95154393,0.00019452,3]
[347301388,1735668644412,-500.0,0.00019452,3]
[347301389,1735668644421,-42182.04,0.00019452,3]
[347301390,1735668644430,-5363.25,0.00019452,3]
[347301391,1735668644440,-1031.11,0.00019452,3]
[347301393,1735668644449,-502.77443756,0.00019452,3]
[347301395,1735668644459,-500.0,0.00019452,3]
[347301397,1735668644469,-930.59,0.00019452,3]
[347301399,1735668644479,-781.61,0.00019452,3]
[347301400,1735668644490,-500.0,0.00019452,3]
[347301401,1735668644500,-500.0,0.00019452,3]
[347301402,1735668644510,-1163.89,0.00019452,3]
[347301403,1735668644519,-1299.77,0.00019452,3]
[347301404,1735668644529,-870.7,0.00019452,3]
[347301405,1735668644538,-684.02,0.00019452,3]
[347301406,1735668644548,-863.36,0.00019452,3]
[347301407,1735668644558,-500.0,0.00019452,3]
[347301408,1735668644567,-497.53869906,0.00019452,3]
[347301409,1735668644577,-1094.57,0.00019452,3]
[347301410,1735668644586,-500.0,0.00019452,3]
[347301411,1735668644596,-500.0,0.00019452,3]
[347301412,1735668644607,-500.0,0.00019452,3]
[347301413,1735668644617,-500.0,0.00019452,3]
[347301414,1735668644627,-1002.07,0.00019452,3]
[347301415,1735668644636,-500.0,0.00019452,3]
[347301416,1735668644645,-500.0,0.00019452,3]
[347301417,1735668644655,-909.7,0.00019452,3]
[347301418,1735668644665,-500.0,0.00019452,3]
[347301419,1735668644674,-500.0,0.00019452,3]
[347301421,1735668644683,-500.0,0.00019452,3]
[347301422,1735668644692,-500.0,0.00019452,3]
[347301424,1735668644702,-1021.39,0.00019452,3]
[347301425,1735668644711,-500.0,0.00019452,3]
[347301426,1735668644721,-500.0,0.00019452,3]
[347301427,1735668644731,-776.35,0.00019452,3]
[347301428,1735668644741,-500.0,0.00019452,3]
[347301429,1735668644750,-8791.02,0.00019452,3]
[347301430,1735668644760,-500.0,0.00019452,3]
[347301431,1735668644769,-500.0,0.00019452,3]
[347301432,1735668644778,-500.0,0.00019452,3]
[347301433,1735668644787,-1192.86,0.00019452,3]
[347301434,1735668644797,-768.06,0.00019452,3]
[347301435,1735668644833,-1423.94,0.00019452,3]
[347301436,1735668644842,-3107.38,0.00019452,3]
[347301437,1735668644852,-500.0,0.00019452,3]
[347301438,1735668644861,-812.33,0.00019452,3]
[347301439,1735668644870,-500.0,0.00019452,3]
[347301440,1735668644881,-500.0,0.00019452,3]
[347301441,1735668644891,-1993.67,0.00019452,3]
[347301442,1735668644901,-500.0,0.00019452,3]
[347301443,1735668644912,-850.38,0.00019452,3]
[347301444,1735668644922,-3945.13,0.00019452,3]
[347301445,1735668644931,-500.0,0.00019452,3]
[347301446,1735668644940,-833.17,0.00019452,3]
[347301447,1735668644951,-842.88,0.00019452,3]
[347301448,1735668644959,-600.29,0.00019452,3]
[347301449,1735668644969,-500.0,0.00019452,3]
[347301450,1735668644980,-1227.77,0.00019452,3]
[347301451,1735668644989,-500.0,0.00019452,3]
[347301452,1735668644999,-500.0,0.00019452,3]
[347301453,1735668645008,-1467.89,0.00019452,3]
[347301454,1735668645017,-735.48,0.00019452,3]
[347301455,1735668645026,-832.16,0.00019452,3]
[347301456,1735668645034,-2082.02,0.00019452,3]
[347301457,1735668645043,-500.0,0.00019452,3]
[347301458,1735668645052,-660.05,0.00019452,3]
[347301459,1735668645062,-500.0,0.00019452,3]
[347301460,1735668645072,-500.0,0.00019473,2]
[347301461,1735668645081,-389.94802501,0.0001958,2]
[347301462,1735668645090,-153.0,0.00019604,2]
[347301463,1735668645099,-153.0,0.00019604,2]
[347301464,1735668645108,-153.0,0.00019604,2]
[347301465,1735668645117,-153.0,0.00019604,2]
[347301466,1735668645126,-153.0,0.00019604,2]
[347301467,1735668645135,-153.0,0.00019604,2]
[347301468,1735668645144,-153.0,0.00019604,2]
[347301469,1735668645154,-153.0,0.00019604,2]
[347301470,1735668645163,-153.0,0.00019604,2]
[347301471,1735668645172,-153.0,0.00019604,2]
[347301472,1735668645181,-153.0,0.00019604,2]
[347301473,1735668645190,-153.0,0.00019604,2]
[347301474,1735668645199,-153.0,0.00019604,2]
[347301475,1735668645209,-153.0,0.00019604,2]
[347301476,1735668645218,-153.0,0.00019604,2]
[347301477,1735668645228,-153.0,0.00019604,2]
[347301478,1735668645238,-153.0,0.00019604,2]
[347301479,1735668645248,-153.0,0.00019604,2]
[347301480,1735668645257,-153.0,0.00019604,2]
[347301481,1735668645267,-153.0,0.00019604,2]
[347301482,1735668645276,-153.0,0.00019604,2]
[347301483,1735668645285,-153.0,0.00019604,2]
[347301484,1735668645295,-153.0,0.00019604,2]
[347301485,1735668645304,-153.0,0.00019604,2]
[347301486,1735668645314,-1056.27951268,0.00019626,2]
[347301487,1735668645323,-153.0,0.00019646,2]
[347301488,1735668645333,-394.0,0.00019712,2]
[347301489,1735668645343,-166.1,0.00019714,2]
[347301490,1735668645353,-1000.0,0.00019721,2]
[347301491,1735668645362,-1000.0,0.00019721,2]
[347301492,1735668645371,-328.840594,0.00019726,2]
[347301493,1735668645382,-328.840594,0.00019726,2]
[347301494,1735668645391,-328.840594,0.00019726,2]
[347301495,1735668645401,-328.840594,0.00019726,2]
[347301496,1735668645411,-525.49,0.00019726,3]
[347301497,1735668645420,-500.0,0.00019726,3]
[347301498,1735668645430,-500.0,0.00019726,3]
[347301499,1735668645439,-325.951123,0.00019726,2]
[347301500,1735668645449,-734.17,0.00019726,3]
[347301501,1735668645458,-500.0,0.00019726,3]
[347301502,1735668645467,-500.0,0.00019726,3]
[347301503,1735668645476,-500.0,0.00019726,3]
[347301504,1735668645485,-536.44,0.00019726,3]
[347301505,1735668645494,-500.0,0.00019726,3]
[347301506,1735668645503,-500.0,0.00019726,3]
[347301507,1735668645512,-500.0,0.00019726,3]
[347301508,1735668645522,-500.0,0.00019726,3]
[347301509,1735668645532,-500.0,0.00019726,3]
[347301510,1735668645541,-502.11,0.00019726,3]
[347301511,1735668645550,-500.0,0.00019726,3]
[347301512,1735668645559,-500.0,0.00019726,3]
[347301513,1735668645569,-233.29200516,0.00019726,3]
[347301514,1735668645578,-500.0,0.00019726,3]
[347301515,1735668645587,-1621.23,0.00019726,3]
[347301516,1735668645596,-521.96,0.00019726,3]
[347301517,1735668645607,-500.0,0.00019726,3]
[347301518,1735668645616,-315.88,0.00019726,3]
[347301519,1735668645626,-500.0,0.00019726,3]
[347301520,1735668645635,-516.03,0.00019726,3]
[347301521,1735668645644,-806.41,0.00019726,3]
[347301522,1735668645655,-500.0,0.00019726,3]
[347301523,1735668645665,-902.8,0.00019726,3]
[347301524,1735668645674,-500.0,0.00019726,3]
[347301525,1735668645683,-500.0,0.00019726,3]
[347301526,1735668645693,-500.0,0.00019726,3]
[347301527,1735668645702,-500.0,0.00019726,3]
[347301528,1735668645711,-500.0,0.00019726,3]
[347301529,1735668645721,-500.0,0.00019726,2]
[347301530,1735668645731,-500.0,0.00019726,3]
[347301531,1735668645740,-589.09,0.00019726,3]
[347301532,1735668645750,-500.0,0.00019726,3]
[347301533,1735668645760,-500.0,0.00019726,3]
[347301534,1735668645769,-500.0,0.00019726,3]
[347301535,1735668645778,-500.0,0.00019726,3]
[347301536,1735668645788,-500.0,0.00019726,3]
[347301537,1735668645797,-522.98,0.00019726,3]
[347301538,1735668645808,-545.94,0.00019726,3]
[347301539,1735668645817,-5614.94,0.00019726,3]
[347301540,1735668645827,-759.41,0.00019726,3]
[347301541,1735668645836,-500.0,0.00019726,3]
[347301542,1735668645845,-500.0,0.00019726,3]
[347301543,1735668645854,-500.0,0.00019726,3]
[347301544,1735668645864,-517.61,0.00019726,3]
[347301545,1735668645873,-522.63493138,0.00019726,3]
[347301546,1735668645883,-568.84,0.00019726,2]
[347301547,1735668645892,-356.14377068,0.00019726,3]
[347301548,1735668645903,-500.0,0.00019726,3]
[347301549,1735668645914,-500.0,0.00019726,3]
[347301550,1735668645923,-500.0,0.00019726,3]
[347301551,1735668645932,-500.0,0.00019726,3]
[347301552,1735668645942,-973.69,0.00019726,3]
[347301553,1735668645953,-500.0,0.00019726,3]
[347301554,1735668645962,-545.23847779,0.00019726,3]
[347301555,1735668645972,-8683.31,0.00019726,3]
[347301556,1735668645982,-500.0,0.00019726,3]
[347301557,1735668645992,-500.0,0.00019726,3]
[347301558,1735668646002,-577.61,0.00019726,3]
[347301559,1735668646014,-592.17,0.00019726,3]
[347301560,1735668646023,-500.0,0.00019726,3]
[347301561,1735668646033,-500.0,0.00019726,3]
[347301562,1735668646042,-500.0,0.00019726,3]
[347301563,1735668646052,-1148.79,0.00019726,3]
[347301564,1735668646061,-500.0,0.00019726,3]
[347301565,1735668646071,-500.0,0.00019726,3]
[347301566,1735668646080,-500.0,0.00019726,3]
[347301567,1735668646090,-500.0,0.00019726,3]
[347301568,1735668646099,-502.16,0.00019726,3]
[347301569,1735668646109,-500.0,0.00019726,3]
[347301571,1735668646119,-1132.64,0.00019726,3]
[347301572,1735668646129,-5833.04,0.00019726,3]
[347301573,1735668646138,-769.3,0.00019726,3]
[347301574,1735668646148,-1512.88,0.00019726,3]
[347301575,1735668646157,-731.64,0.00019726,3]
[347301576,1735668646168,-500.0,0.00019726,3]
[347301577,1735668646177,-500.0,0.00019726,3]
[347301578,1735668646186,-500.0,0.00019726,3]
[347301579,1735668646197,-500.0,0.00019726,3]
[347301580,1735668646207,-3050.94,0.00019726,3]
[347301581,1735668646217,-969.77,0.00019726,3]
[347301582,1735668646227,-500.0,0.00019726,3]
[347301583,1735668646237,-500.0,0.00019726,3]
[347301584,1735668646246,-500.0,0.00019726,3]
[347301585,1735668646256,-832.55,0.00019726,3]
[347301586,1735668646265,-770.7,0.00019726,3]
[347301587,1735668646275,-500.0,0.00019726,3]
[347301588,1735668646284,-500.0,0.00019726,3]
[347301589,1735668646294,-1429.98,0.00019726,3]
[347301590,1735668646303,-557.67,0.00019726,3]
[347301592,1735668646312,-500.0,0.00019726,3]
[347301593,1735668646322,-500.0,0.00019726,3]
[347301594,1735668646331,-500.0,0.00019726,3]
[347301595,1735668646341,-500.0,0.00019726,3]
[347301596,1735668646350,-500.0,0.00019726,3]
[347301597,1735668646360,-1584.09,0.00019726,3]
[347301598,1735668646369,-832.15,0.00019726,3]
[347301599,1735668646379,-759.0,0.00019726,3]
[347301600,1735668646388,-500.0,0.00019726,3]
[347301601,1735668646398,-1933.34,0.00019726,3]
[347301602,1735668646407,-3028.4,0.00019726,3]
[347301603,1735668646416,-761.91,0.00019726,3]
[347301604,1735668646426,-1979.06,0.00019726,3]
[347301605,1735668646436,-500.0,0.00019726,3]
[347301606,1735668646446,-1587.14,0.00019726,3]
[347301607,1735668646455,-500.0,0.00019726,3]
[347301608,1735668646465,-500.0,0.00019726,3]
[347301609,1735668646475,-500.0,0.00019726,3]
[347301610,1735668646485,-632.38420102,0.00019726,3]
[347301611,1735668646496,-42182.04,0.00019726,3]
[347301612,1735668646505,-5363.25,0.00019726,3]
[347301613,1735668646515,-1031.11,0.00019726,3]
[347301614,1735668646525,-500.0,0.00019726,3]
[347301615,1735668646535,-930.59,0.00019726,3]
[347301616,1735668646545,-781.61,0.00019726,3]
[347301617,1735668646555,-500.0,0.00019726,3]
[347301618,1735668646565,-1163.89,0.00019726,3]
[347301619,1735668646575,-1299.77,0.00019726,3]
[347301620,1735668646584,-870.7,0.00019726,3]
[347301621,1735668646594,-684.02,0.00019726,3]
[347301622,1735668646606,-863.36,0.00019726,3]
[347301623,1735668646616,-1094.57,0.00019726,3]
[347301624,1735668646625,-500.0,0.00019726,3]
[347301625,1735668646636,-500.0,0.00019726,3]
[347301626,1735668646646,-500.0,0.00019726,3]
[347301627,1735668646656,-500.0,0.00019726,3]
[347301628,1735668646666,-1002.07,0.00019726,3]
[347301629,1735668646675,-500.0,0.00019726,3]
[347301630,1735668646686,-909.7,0.00019726,3]
[347301631,1735668646695,-500.0,0.00019726,3]
[347301632,1735668646705,-500.0,0.00019726,3]
[347301633,1735668646714,-500.0,0.00019726,3]
[347301634,1735668646724,-500.0,0.00019726,3]
[347301635,1735668646733,-1021.39,0.00019726,3]
[347301636,1735668646743,-500.0,0.00019726,3]
[347301637,1735668646753,-481.55197837,0.00019726,3]
[347301638,1735668646762,-776.35,0.00019726,3]
[347301640,1735668646772,-500.0,0.00019726,3]
[347301641,1735668646781,-8791.02,0.00019726,3]
[347301643,1735668646791,-500.0,0.00019726,3]
[347301644,1735668646801,-500.0,0.00019726,3]
[347301645,1735668646810,-500.0,0.00019726,3]
[347301646,1735668646821,-1192.86,0.00019726,3]
[347301647,1735668646830,-768.06,0.00019726,3]
[347301648,1735668646840,-1423.94,0.00019726,3]
[347301649,1735668646849,-3107.38,0.00019726,3]
[347301651,1735668646861,-500.0,0.00019726,3]
[347301653,1735668646870,-812.33,0.00019726,3]
[347301655,1735668646879,-500.0,0.00019726,3]
[347301657,1735668646889,-500.0,0.00019726,3]
[347301659,1735668646899,-1993.67,0.00019726,3]
[347301660,1735668646913,-500.0,0.00019726,3]
[347301662,1735668646923,-850.38,0.00019726,3]
[347301663,1735668646933,-3945.13,0.00019726,3]
[347301664,1735668646942,-833.17,0.00019726,3]
[347301665,1735668646953,-842.88,0.00019726,3]
[347301666,1735668646962,-600.29,0.00019726,3]
[347301667,1735668646972,-451.79420548,0.00019726,3]
[347301668,1735668646982,-1227.77,0.00019726,3]
[347301670,1735668646992,-500.0,0.00019726,3]
[347301671,1735668647002,-500.0,0.00019726,3]
[347301673,1735668647012,-1467.89,0.00019726,3]
[347301674,1735668647021,-735.48,0.00019726,3]
[347301675,1735668647031,-832.16,0.00019726,3]
[347301676,1735668647041,-2082.02,0.00019726,3]
[347301677,1735668647051,-500.0,0.00019726,3]
[347301678,1735668647060,-660.05,0.00019726,3]
[347301679,1735668647070,-155.98252225,0.00019726,3]
[347301680,1735668647079,-500.0,0.00019773,2]
[347301681,1735668647089,-714.631,0.0001978,2]
[347301682,1735668647098,-6157.51,0.000198,2]
[347301683,1735668647110,-11351.53,0.000198,2]
[347301684,1735668647119,-2221.15,0.000198,2]
[347301685,1735668647128,-389.94802501,0.0001987,2]
[347301686,1735668647138,-1056.27951268,0.00019899,2]
[347301687,1735668647147,-328.840594,0.0001999,2]
[347301688,1735668647157,-328.840594,0.0001999,2]
[347301689,1735668647167,-328.840594,0.0001999,2]
[347301690,1735668647176,-328.840594,0.0001999,2]
[347301691,1735668647186,-325.951123,0.0001999,2]
[347301692,1735668647196,-325.951123,0.0001999,2]
[347301693,1735668647206,-307.0,0.0002,3]
[347301694,1735668647216,-304.0,0.0002,3]
[347301695,1735668647226,-304.0,0.0002,3]
[347301696,1735668647236,-304.0,0.0002,3]
[347301697,1735668647247,-328.840594,0.0002,2]
[347301698,1735668647257,-328.840594,0.0002,2]
[347301699,1735668647266,-328.840594,0.0002,2]
[347301700,1735668647276,-328.840594,0.0002,2]
[347301701,1735668647286,-2086.0,0.0002,3]
[347301702,1735668647296,-2083.0,0.0002,3]
[347301703,1735668647306,-2083.0,0.0002,3]
[347301704,1735668647318,-2083.0,0.0002,3]
[347301705,1735668647328,-525.49,0.0002,3]
[347301706,1735668647337,-500.0,0.0002,3]
[347301707,1735668647347,-500.0,0.0002,3]
[347301708,1735668647357,-325.951123,0.0002,2]
[347301709,1735668647367,-325.951123,0.0002,2]
[347301710,1735668647376,-734.17,0.0002,3]
[347301711,1735668647386,-500.0,0.0002,3]
[347301712,1735668647396,-500.0,0.0002,3]
[347301713,1735668647406,-500.0,0.0002,3]
[347301714,1735668647416,-536.44,0.0002,3]
[347301715,1735668647426,-500.0,0.0002,3]
[347301716,1735668647535,-500.0,0.0002,3]
[347301717,1735668647546,-500.0,0.0002,3]
[347301718,1735668647555,-500.0,0.0002,3]
[347301719,1735668647565,-502.11,0.0002,3]
[347301720,1735668647575,-500.0,0.0002,3]
[347301721,1735668647585,-500.0,0.0002,3]
[347301722,1735668647595,-500.0,0.0002,3]
[347301723,1735668647606,-1621.23,0.0002,3]
[347301724,1735668647615,-521.96,0.0002,3]
[347301725,1735668647625,-417.98344429,0.0002,3]
[347301726,1735668647635,-500.0,0.0002,3]
[347301727,1735668647644,-516.03,0.0002,3]
[347301728,1735668647654,-806.41,0.0002,3]
[347301729,1735668647664,-500.0,0.0002,3]
[347301730,1735668647673,-902.8,0.0002,3]
[347301731,1735668647683,-550.6813367,0.0002,3]
[347301732,1735668647692,-500.0,0.0002,3]
[347301733,1735668647702,-151.0,0.0002,2]
[347301734,1735668647711,-500.0,0.0002,3]
[347301735,1735668647721,-500.0,0.0002,3]
[347301736,1735668647730,-500.0,0.0002,3]
[347301737,1735668647739,-500.0,0.0002,2]
[347301738,1735668647749,-500.0,0.0002,3]
[347301739,1735668647758,-589.09,0.0002,3]
[347301740,1735668647767,-500.0,0.0002,3]
[347301741,1735668647776,-500.0,0.0002,3]
[347301742,1735668647786,-526.068168,0.0002,3]